Cogmind - Beta 16.1 @@@ ROGUE MODE // 2026.02.22 @ 13:12:03 Player: C0-2MO Result: Destroyed by G-34 Mercenary with Small Laser Performance ------------- Evolutions (0) 0 Regions Visited (1) 200 Robots Destroyed (23) 115 Value Destroyed (559) 559 Prototype IDs (0) 0 Alien Tech Used (0) 0 Bonus (0) 0 TOTAL SCORE: 874 Bonus ------- None Cogmind --------- Core Integrity 0/250 Matter 285/300 Energy 220/250 System Corruption 0% Temperature Warning (317) Movement Treading (160) Location -10/Materials Parts ------- > --- POWER (1) -------- Ion Engine > --- PROPULSION (2) --- Light Treads Light Treads > --- UTILITY (2) ------ Hardened Light Armor Plating Hardened Light Armor Plating > --- WEAPON (2) ------- EM Pulse Gun Flamer > --- INVENTORY (5) ---- Light Ion Engine Light Treads Heat Sink Peak State ------------ > --- POWER ------------ Ion Engine > --- PROPULSION ------- Light Treads Light Treads > --- UTILITY ---------- Improved Heat Sink Hardened Light Armor Plating > --- WEAPON ----------- EM Pulse Gun Flamer > --- INVENTORY -------- Light Ion Engine Light Treads Heat Sink Hardened Light Armor Plating [Rating: 11] Favorites ----------- Power Ion Engine Engine Ion Engine Propulsion Light Treads Treads Light Treads Utility Hardened Light Armor Plating Device Improved Heat Sink Storage Small Storage Unit Protection Hardened Light Armor Plating Weapon Medium Laser Energy Gun Medium Laser Special Weapon Flamer Build | -11 -10 ------- Run | Yrd Mat Slots Evolved . | . . Power . | . . Propulsion . | . . Utility . | . . Weapon . | . . Parts Attached 15 | 8 7 Power 3 | 2 1 Engine 3 | 2 1 Core . | . . Reactor . | . . Propulsion 2 | 2 . Treads 2 | 2 . Leg . | . . Wheel . | . . Hover . | . . Flight . | . . Utility 6 | 2 4 Device 2 | 1 1 Storage 1 | 1 . Processor . | . . Hackware . | . . Protection 3 | . 3 Artifact . | . . Weapon 4 | 2 2 Energy Gun 3 | 2 1 Energy Cannon . | . . Ballistic Gun . | . . Ballistic Cannon . | . . Launcher . | . . Special Weapon 1 | . 1 Impact Weapon . | . . Slashing Weapon . | . . Piercing Weapon . | . . Special Melee Weapon . | . . Unidentified Prototypes . | . . Parts Lost 4 | . 4 Power 1 | . 1 Propulsion . | . . Utility 1 | . 1 Weapon 2 | . 2 Highest Loss Streak 1 | . 1 To Critical Strikes . | . . Average Backups 3 | 1 4 Power 1 | 1 1 Propulsion . | . . Utility 1 | . 1 Weapon . | . . Tool/Special . | . . Unused Backups 2 | . 2 Power . | . . Propulsion 1 | . 1 Utility 1 | . 1 Weapon . | . . Tool/Special . | . . Average Slot Usage (%) 98 | . 98 Engine 13 | . 13 Treads 28 | . 28 Device 13 | . 13 Storage 1 | . 1 Protection 13 | . 13 Energy Gun 27 | . 27 Peak Build Rating 11 | 7 11 Average Rating 9 | 5 9 On Entrance 3 | . 7 Avg Prop Armor Cover (%) . | . . Naked Turns . | . . Heaviest Build 19 | 15 19 Greatest Support 40 | 40 40 Greatest Overweight (x) . | . . Average Overweight (x) . | . . Largest Inventory Capacity 8 | 8 8 Average Capacity 5 | 6 5 Most Carried 5 | 2 5 Average Carried 4 | 1 4 Final Capacity 8 | 8 5 Final Carried 3 | 2 3 Class Distribution -------------------- 100% | Mutant Dominant Class ---------------- Mutant | -10/Materials Resources | -11 -10 ----------- Run | Yrd Mat Matter Collected 313 | 265 48 Remotely . | . . Salvage Created 668 | 132 536 Parts 32 | 9 23 Haulers Intercepted 1 | . 1 Recyclers Shooed 1 | 1 . Parts Field Recycled . | . . Retrieved Matter . | . . Parts Self-Destructed . | . . Prevented . | . . Parts Restored . | . . Kills | -11 -10 ------- Run | Yrd Mat Combat Hostiles Destroyed 15 | . 15 Melee 3 | . 3 Guns 8 | . 8 Classes Destroyed 8 | 3 5 Worker 2 | 1 1 Tunneler 3 | 3 . Hauler 1 | . 1 Recycler 1 | 1 . Watcher 1 | . 1 Swarmer 3 | . 3 Grunt 10 | . 10 Subdweller 2 | . 2 Best Kill Streak 4 | 2 4 Combat Bots Only 4 | . 4 Max Kills in Single Turn 1 | 1 1 Gunslinging . | . . Exploded . | . . Melee 1 | . 1 Uniques/NPCs Destroyed . | . . Combat | -11 -10 -------- Run | Yrd Mat Hostile Shots Fired 123 | . 123 Missed 34 | . 34 Hits 89 | . 89 Projectile 89 | . 89 Critical Strikes 1 | . 1 Damage Taken 1050 | . 1050 Core 250 | . 250 Absorbed by Shields . | . . Core Remaining (%) 100 | 100 . Volleys Fired 72 | 9 63 Largest 2 | 2 2 Hottest 140 | 100 140 Shots Fired 132 | 18 114 Gun 128 | 18 110 Cannon . | . . Launcher . | . . Special 4 | . 4 Kinetic . | . . Thermal 112 | 18 94 Explosive . | . . Electromagnetic 20 | . 20 Robot Hit Streak 24 | 4 24 Robot Miss Streak 3 | 2 3 Penetration Max . | . . Secondary Targets 2 | . 2 Max Gunslinging Chain 1 | . 1 Shots Hit Robots 93 | 10 83 Core Hits 34 | 7 27 Critical Kills . | . . Critical Parts Destroyed . | . . Critical Strikes 11 | 2 9 Burn 10 | 2 8 Corrupt 1 | . 1 Melee Attacks . | . . Impact . | . . Slashing . | . . Piercing . | . . Sneak Attacks . | . . Combat Hostiles . | . . Follow-up Attacks . | . . Damage Inflicted 1246 | 132 1114 Guns 1170 | 123 1047 Cannons . | . . Explosions 20 | . 20 Melee . | . . Ramming 32 | 9 23 Kinetic . | . . Thermal 1021 | 123 898 Explosive . | . . Electromagnetic 193 | . 193 Impact . | . . Slashing . | . . Piercing . | . . Highest Corruption . | . . Average Corruption . | . . Corruption Purged . | . . Corruption Blocked . | . . Overload Shots . | . . Overflow Damage . | . . Projectiles . | . . Explosions . | . . Melee . | . . Knockbacks 1 | . 1 Impact 1 | . 1 Kinetic . | . . Secondary . | . . Self-Inflicted Damage 16 | . 16 Shots 1 | . 1 Rammed 15 | 5 10 Targets Rammed 20 | 6 14 Kicked . | . . Crushed 5 | 1 4 Highest Temperature 356 | 157 356 Average Temperature 105 | 65 112 Received Heat Transfer 489 | . 489 Effects 5 | . 5 Interference 5 | . 5 Siege Activations . | . . Martial Activations . | . . Shielding Activations . | . . Robots Disrupted . | . . Combat Hostiles . | . . Robots Corrupted 1 | . 1 Combat Hostiles 1 | . 1 Parts Fried . | . . Impact Corruptions . | . . Robots Melted 3 | . 3 Combat Hostiles 3 | . 3 Parts Melted 13 | 1 12 Heat Transferred 3922 | 518 3404 Parts Sabotaged . | . . Parts Stolen . | . . Parts Stripped . | . . Power Chain Reactions 1 | . 1 Alert | -11 -10 ------- Run | Yrd Mat Maximum Alert Level . | . . Low Security (%) 100 | 100 100 Level 1 . | . . Level 2 . | . . Level 3 . | . . Level 4 . | . . Level 5 . | . . High Security . | . . Max Security . | . . Peak Influence 170 | 10 170 Initial 3 | . 3 Average 43 | 1 46 Influence Increases 469 | 25 444 Destroy 0b10 Robot/C 260 | . 260 Destroy 0b10 Robot/NC 40 | 25 15 Destroy Leader 74 | . 74 Successful Hack 17 | . 17 Disable Machine 15 | . 15 Destroy Structure 3 | . 3 Partial Spotted 15 | . 15 Lose Combat Pursuer 45 | . 45 Influence Decreases 409 | 20 389 Entered New Map 2 | . 2 Time Decay 385 | 20 365 Lost Part 22 | . 22 Squads Dispatched 2 | . 2 Investigation 2 | . 2 Extermination . | . . Reinforcement . | . . Assault . | . . Garrison . | . . Intercept . | . . Searches Triggered . | . . Construction Impeded . | . . Haulers Reinforced . | . . Active Scanning Responses . | . . Cargo Convoy Interrupts . | . . Stealth | -11 -10 --------- Run | Yrd Mat Distress Signals 1 | . 1 Communications Jammed . | . . Distress Signals . | . . Times Spotted 26 | . 26 Peak Tracking Total 5 | . 5 Tactical Retreats 2 | . 2 Traps | -11 -10 ------- Run | Yrd Mat Traps Triggered 1 | . 1 Indirectly . | . . Trap Hack Attempts . | . . Triggered . | . . Disarmed . | . . Reprogrammed . | . . Reused . | . . Traps Extracted . | . . Installed . | . . Triggered . | . . Machines | -11 -10 ---------- Run | Yrd Mat Machines Disabled 1 | . 1 Max in Single Turn 1 | . 1 Machines Repaired . | . . Machines Dismantled . | . . Machines Sabotaged . | . . Overloaded Fab Kills . | . . Hacking | -11 -10 --------- Run | Yrd Mat Machines Accessed 6 | . 6 Terminals 5 | . 5 Fabricators . | . . Repair Stations . | . . Recycling Units 1 | . 1 Scanalyzers . | . . Garrison Access . | . . Total Hacks 17 | . 17 Successful 7 | . 7 Failed 10 | . 10 Catastrophic 1 | . 1 Database Lockouts . | . . Manual 16 | . 16 Terminals 15 | . 15 Fabricators . | . . Repair Stations . | . . Recycling Units 2 | . 2 Scanalyzers . | . . Garrison Access . | . . Terminal Hacks 1 | . 1 Terminal Index 1 | . 1 Fabricator Hacks . | . . Repair Station Hacks . | . . Recycling Unit Hacks . | . . Scanalyzer . | . . Garrison Access Hacks . | . . Unauthorized Hacks 6 | . 6 Terminals 6 | . 6 Botnet 2 | . 2 Skim 4 | . 4 Fabricators . | . . Repair Stations . | . . Recycling Units . | . . Scanalyzers . | . . Garrison Access . | . . Data Cores Recovered . | . . Used . | . . Hacking Detections 6 | . 6 Full Trace Events 1 | . 1 Feedback Events . | . . Feedback Blocked . | . . Robot Schematics Acquired . | . . Robots Built . | . . Authchips . | . . Time . | . . Total Robot Build Rating . | . . Part Schematics Acquired . | . . Parts Built . | . . Authchips . | . . Time . | . . Total Part Build Rating . | . . Part Studies Acquired . | . . Parts Repaired . | . . Time . | . . Parts Recycled . | . . Recycled Matter . | . . Retrieved Matter . | . . Retrieved Components . | . . Parts Scanalyzed . | . . Part Schematics Acquired . | . . Parts Damaged . | . . Bothacking | -11 -10 ------------ Run | Yrd Mat Used RIF Installer . | . . Robots Hacked . | . . Non-combat . | . . Combat . | . . Robot Hacks Applied . | . . Relay Couplers Released . | . . Fabnet Peak Effective % . | . . Robots Rewired . | . . Allies Hacked . | . . Hacks Repelled . | . . Allies | -11 -10 -------- Run | Yrd Mat Total Allies . | . . Largest Group . | . . Highest-Rated Group . | . . Highest-Rated Ally . | . . Total Orders . | . . Ally Attacks . | . . Total Damage . | . . Kills . | . . Allies Corrupted . | . . Allies Melted . | . . Intel | -11 -10 ------- Run | Yrd Mat Active Infowar (turns) 284 | 16 268 Seismic 284 | 16 268 Robot Analysis Total . | . . Derelict Logs Recovered . | . . Drone Launches . | . . Drone Recoveries . | . . Exploration | -11 -10 ------------- Run | Yrd Mat Turns Passed 1431 | 111 1320 Spaces Moved 571 | 42 529 Core 4 | 4 . Treads 567 | 38 529 Legs . | . . Wheels . | . . Hover . | . . Flight . | . . Fastest Speed 50 | 50 160 Average Speed 159 | 149 160 Slowest Speed 160 | 160 160 Overloaded Moves . | . . Propulsion Burnouts . | . . Robots Hopped . | . . Potential Cave-ins . | . . Cave-ins Triggered . | . . Exploration Rate (%) 46 | 4 89 Regions Visited 1 Branch Regions . Pre-discovered Areas . | . . Known Exits Taken . | . . Unknown Exits Taken 1 | 1 . Scrap Searched . | . . Spaces Dug . | . . Terrain Destroyed 3 | . 3 Melee . | . . Projectile . | . . AOE 3 | . 3 Terrain Rammed . | . . Walls Destroyed . | . . Machines Disabled . | . . Actions | -11 -10 --------- Run | Yrd Mat Total 942 | 65 877 Wait 254 | . 254 Move 571 | 42 529 Hop . | . . Pick Up 5 | 1 4 Fast Attach 11 | 7 4 Attach 3 | . 3 Detach 1 | . 1 Swap 3 | 1 2 Drop 3 | . 3 Fire 72 | 9 63 Melee . | . . Ram . | . . Kick . | . . Crush 19 | 5 14 Escape Stasis . | . . Rewire . | . . Trap . | . . Miscellaneous . | . . Route ------- -11/Scrapyard -10/Materials (discovered 4 exits: [*Mat x2] / [*Min] / [*Sub]) History --------- Turn | Location | Event 8 | -11/Scrapyard | Discovered new exit (range 15) 112 | -11/Scrapyard | Entered Materials 324 | -10/Materials | Build established: Mutant 476 | -10/Materials | Core integrity fell below 50% 677 | -10/Materials | Discovered new exit (range 15) 709 | -10/Materials | Discovered new exit (range 10) 712 | -10/Materials | Derelicts attacked the area 1048 | -10/Materials | Discovered new exit (range 16) 1295 | -10/Materials | Discovered new exit (range 11) 1382 | -10/Materials | Core integrity fell below 20% 1432 | -10/Materials | Destroyed by G-34 Mercenary with Small Laser Last Messages --------------- 01423_ G-47 Trooper heat spikes uncontrollably. 01424_ G-47 Trooper overheating. 01425_ U-05 Engineer lays Concrete. 01425_ G-47 Trooper overheating. 01426_ G-47 Trooper heat spikes uncontrollably. 01427_ G-47 Trooper heat short circuits Imp. Heat Sink. 01427_ G-47 Trooper overheating. 01427_ U-05 Engineer lays Concrete. 01427_ G-47 Trooper overheating. 01428_ G-34 Mercenary misfires. 01428_ U-05 Engineer lays Concrete. 01428_ G-47 Trooper overheating. 01429_ U-05 Engineer lays Concrete. 01430_ G-47 Trooper critical meltdown. 01430_ Aluminum Leg melted. 01430_ Broken Imp. Heat Sink melted. 01430_ Particle Gun melted. 01430_ Aluminum Leg melted. 01431_ U-05 Engineer lays Concrete. Map ----- +----------------------------------------------------+ | ##### # """ #?? | | ## # """ ??? | | ## # ??? | | ## ##########?? | | ## ############ | | ## # # | | ## # = # | | ## # # | | ## # ! # | | ## # # | | ##### + # | | ????# ! ###+####???? | | ##### % #????? | | = #????? | | == #????? | | % == #????? | | %! == #????? | | ####### ^ ^ ####### | | # # # # | | # """ + !% ]] # ""# | | # """ # %!= ]! # T"# | | # """ # !! # [ ""# | | # # #=% # | | # # ^ #% u; | | + "T" # +%""%g; | | ############ """ # "@ g; | | ###??????????# """ # " # | | #????????????# """ # # | | #????????????# # # | | #????????????# # # | | #????????????# """ ####### | | #????????????# """ ?????? | | #????????????# ^""" ?????? | | #????????????+ ?????? | | #????????????# ? ?????? | | #????????????????"" ?????? | | #????????????????"" ?????? | | #?????????????????" ?????? | | ?????????????????? ?????? | | ?????????????????? ?????? | | ??????????????????? ?????? | | ????????????????????????????? | | ????????????????????????????? | | ????????????????????????????? | | ????????????????????????????? | | ????????????????????????????? | | ????????????????????????????? | | ????????????????????????????? | | ????????????????????????????? | | ????????????????????????????? | +----------------------------------------------------+ Best States ------------- Heat Dissipation 39 Energy Generation 10 Energy Capacity 250 Matter Stores 300 Matter Capacity 300 Sight Range 16 Terrain Scan Density 10 Armor Coverage 300 Evasion (%) 40 Recoil Reduction 2 Item Schematics ----------------- None Robot Schematics ------------------ None Fabricated ------------ Nothing Repaired ---------- Nothing Studied --------- None Alien Tech Used ----------------- None Achievements -------------- None Challenges ------------ None Game ------ Seed TechChargeHammer Manual? 0 Play Time 00:10:44 Cumulative 934.6 hours Start 2026.02.22 @ 13:03:48 End 2026.02.22 @ 13:12:03 Sessions 1 Manual Loads 0 Difficulty Rogue Special Mode None Game No. 360 Rogue 360 Adventurer 0 Explorer 0 Win Type - Total 97 Types 46/6/17/9/8/1/1/3/1/5 Lore% 98 Gallery% 88 Achievement% 86 Wizard Run 0 Options --------- Layout 1 ASCII 0 Keyboard 0 Movement Numpad Keybinds 0 Fullscreen 1 Font 24/Smallcaps Map View 50x35 Zoom Use 0% Tactical HUD 1 Map Filters NONE Filters NONE Steam 1 RUN: f22923e7-2be7-439e-b0fd-4435437b033e